bitfinex/quotes_BTCUSD_20250917
["timestamp","ask_amount","ask_price","bid_price","bid_amount"]
[1758118972349,1.3654019,115980.0,115970.0,0.00346809]
[1758118972528,1.3654019,115980.0,115970.0,0.02817809]
[1758118972828,1.3634419,115980.0,115970.0,0.20063648]
[1758118973520,0.91935838,115980.0,115970.0,0.20230648]
[1758118973732,0.78201465,115980.0,115970.0,0.20230648]
[1758118974341,0.37303092,115980.0,115970.0,0.20230648]
[1758118974549,0.78201465,115980.0,115970.0,0.20230648]
[1758118974778,0.10139092,115980.0,115970.0,0.20240648]
[1758118974997,0.78201465,115980.0,115970.0,0.20240648]
[1758118975244,0.28780125,115980.0,115970.0,0.20240648]
[1758118975692,0.68076373,115980.0,115970.0,0.20240648]
[1758118976389,0.28779491,115980.0,115970.0,0.24405665]
[1758118976622,0.27174,115980.0,115970.0,0.61139021]
[1758118979170,0.0001,115980.0,115970.0,0.61139021]
[1758118979371,0.27164,115990.0,115980.0,0.17244352]
[1758118979520,0.28780074,115990.0,115980.0,0.19827352]
[1758118979721,0.28780074,115990.0,115980.0,0.60940725]
[1758118980355,0.28780074,115990.0,115980.0,0.27876689]
[1758118980762,0.28780074,115990.0,115980.0,0.27886689]
[1758118980943,0.69678447,115990.0,115980.0,0.20052352]
[1758118982151,0.86921312,115990.0,115980.0,0.20052352]
[1758118982361,0.69678447,115990.0,115980.0,0.20052352]
[1758118982568,0.86921312,115990.0,115980.0,0.20052352]
[1758118983827,0.87121312,115990.0,115980.0,0.19885352]
[1758118984053,1.39908285,115990.0,115980.0,0.0001]
[1758118984260,1.45006157,115990.0,115980.0,0.0001]
[1758118984446,1.42182285,115990.0,115980.0,0.0001]
[1758118985123,1.41982285,115990.0,115980.0,0.0001]
[1758118985328,1.41982285,115990.0,115980.0,0.0011]
[1758118985546,1.41982285,115990.0,115980.0,0.001]
[1758118985752,0.17244352,115980.0,115970.0,0.00046809]
[1758118985974,1.17458139,115980.0,115970.0,0.00046809]
[1758118986181,1.17657139,115980.0,115970.0,0.00241809]
[1758118986391,1.17458139,115980.0,115970.0,0.02682809]
[1758118986824,1.17468139,115980.0,115970.0,0.02682809]
[1758118987915,0.76569766,115980.0,115970.0,0.21820231]
[1758118988129,0.09900074,115980.0,115970.0,0.20095648]
[1758118988342,0.37092074,115980.0,115970.0,0.20095648]
[1758118988577,0.77990447,115980.0,115970.0,0.20095648]
[1758118989227,0.95234799,115980.0,115970.0,0.19928648]
[1758118989441,1.36133172,115980.0,115970.0,0.19928648]
[1758118989658,0.54336426,115980.0,115970.0,0.19928648]
[1758118989870,0.98386511,115980.0,115970.0,0.19928648]
[1758118991366,0.98585511,115980.0,115970.0,0.02682809]
[1758118991704,0.98585511,115980.0,115970.0,0.19928648]
[1758118991911,0.98386511,115980.0,115970.0,0.20028648]
[1758118992333,0.98386511,115980.0,115970.0,0.02782809]
[1758118992531,0.98888511,115980.0,115970.0,0.00046809]
[1758118992843,0.98585511,115980.0,115970.0,0.00241809]
[1758118993048,0.98585511,115980.0,115970.0,0.02682809]
[1758118993814,0.63062393,115980.0,115970.0,0.02682809]
[1758118994019,0.98585511,115980.0,115970.0,0.02682809]
[1758118994247,0.98888511,115980.0,115970.0,0.00046809]
[1758118994435,1.01162511,115980.0,115970.0,0.00046809]
[1758118994640,1.01162511,115980.0,115970.0,0.00056809]
[1758118994641,0.65639393,115980.0,115970.0,0.00056809]
[1758118994822,0.98888511,115980.0,115970.0,0.02497809]
[1758118995024,0.98585511,115980.0,115970.0,0.02692809]
[1758118996177,1.01162511,115980.0,115970.0,0.00056809]
[1758118996823,1.01162511,115980.0,115970.0,0.02497809]
[1758118997788,1.01162511,115980.0,115970.0,0.00056809]
[1758118999220,0.98888511,115980.0,115970.0,0.02497809]
[1758118999421,0.71194511,115980.0,115970.0,0.00251809]
[1758118999620,0.98358511,115980.0,115970.0,0.21830231]
[1758118999850,0.98358511,115980.0,115970.0,0.20105648]
[1758119000059,0.98358511,115980.0,115970.0,0.19938648]
[1758119000679,0.98358511,115980.0,115970.0,0.20105648]
[1758119001301,0.35458,115980.0,115970.0,0.20105648]
[1758119001718,0.27174,115980.0,115970.0,0.20105648]
[1758119002752,0.27174,115980.0,115970.0,0.20095648]
[1758119004266,0.27174,115980.0,115970.0,0.20105648]
[1758119004695,0.27174,115980.0,115970.0,0.20205648]
[1758119006180,0.44418352,115980.0,115970.0,0.20205648]
[1758119006364,0.27174,115980.0,115970.0,0.20205648]
[1758119006775,0.44418352,115980.0,115970.0,0.20205648]
[1758119007861,0.27174,115980.0,115970.0,0.20205648]
[1758119008956,1.02697178,115980.0,115970.0,0.20038648]
[1758119009463,1.03199178,115980.0,115970.0,0.00156809]
[1758119009671,1.05473178,115980.0,115970.0,0.00156809]
[1758119009872,0.92103047,115980.0,115970.0,0.00156809]
[1758119010502,0.92103047,115980.0,115970.0,0.00056809]
[1758119011935,0.92103047,115980.0,115970.0,0.00046809]
[1758119012936,0.53447319,115980.0,115970.0,0.00046809]
[1758119013138,0.89829047,115980.0,115970.0,0.17292648]
[1758119013352,0.91134278,115980.0,115970.0,0.02682809]
[1758119013558,0.91134278,115980.0,115970.0,0.04407392]
[1758119013925,0.63970278,115980.0,115970.0,0.17487648]
[1758119014131,0.08536967,115980.0,115970.0,0.21528231]
[1758119014340,0.72230695,115980.0,115970.0,0.19970648]
[1758119015505,0.89475047,115980.0,115970.0,0.19970648]
[1758119017260,0.72230695,115980.0,115970.0,0.19970648]
[1758119018200,0.89475047,115980.0,115970.0,0.19970648]
[1758119019937,0.72230695,115980.0,115970.0,0.19970648]
[1758119020935,0.89475047,115980.0,115970.0,0.19970648]
[1758119021103,0.89475047,115980.0,115970.0,0.19980648]
[1758119021337,0.44918695,115980.0,115970.0,0.19980648]
[1758119021511,0.5363608,115980.0,115970.0,0.19980648]
[1758119021728,0.8092408,115980.0,115970.0,0.19980648]
[1758119022147,0.63679728,115980.0,115970.0,0.23730648]
[1758119024565,0.36391728,115980.0,115970.0,0.23730648]
[1758119024974,0.63663728,115980.0,115970.0,0.23730648]
[1758119025543,0.8090808,115980.0,115970.0,0.23730648]
[1758119026000,0.63663728,115980.0,115970.0,0.23730648]
[1758119026242,0.8090808,115980.0,115970.0,0.23730648]
[1758119026591,0.63663728,115980.0,115970.0,0.23730648]
[1758119026823,0.8090808,115980.0,115970.0,0.23563648]
[1758119027145,0.8090808,115980.0,115970.0,0.23663648]
[1758119027675,0.8111608,115980.0,115970.0,0.06417809]
[1758119028339,0.8111608,115980.0,115970.0,0.23663648]
[1758119029006,0.8090808,115980.0,115970.0,0.23663648]
[1758119032371,0.8111608,115980.0,115970.0,0.23663648]
[1758119032565,0.44526352,115980.0,115970.0,0.23663648]
[1758119032719,0.8090808,115980.0,115970.0,0.23663648]
[1758119035108,0.27282,115980.0,115970.0,0.23663648]
[1758119035333,0.8090808,115980.0,115970.0,0.23663648]
[1758119035556,0.63663728,115980.0,115970.0,0.23663648]
[1758119035774,0.8090808,115980.0,115970.0,0.23663648]
[1758119036530,0.27282,115980.0,115970.0,0.23830648]
[1758119036774,0.27282,115980.0,115970.0,0.23663648]
[1758119036990,0.63663728,115980.0,115970.0,0.23663648]
[1758119037195,0.8090808,115980.0,115970.0,0.23663648]
[1758119039141,0.8111608,115980.0,115970.0,0.23653648]
[1758119039571,0.8090808,115980.0,115970.0,0.23653648]
[1758119039936,0.44526352,115980.0,115970.0,0.23653648]
[1758119040146,0.8111608,115980.0,115970.0,0.23653648]
[1758119041475,0.8142408,115980.0,115970.0,0.21142648]
[1758119041706,0.8142408,115980.0,115970.0,0.24004648]
[1758119041707,0.0001,115980.0,115970.0,0.24004648]
[1758119041886,0.36391728,115980.0,115970.0,0.24004648]
[1758119042087,0.27218,115980.0,115970.0,0.24004648]
[1758119042594,0.63599728,115980.0,115970.0,0.24004648]
[1758119043962,0.0001,115980.0,115970.0,0.24004648]
[1758119044170,0.63599728,115980.0,115970.0,0.24004648]
[1758119046349,0.9275668,115980.0,115970.0,0.03896809]
[1758119046548,0.97976552,115980.0,115970.0,0.03896809]
[1758119047209,0.99587996,115980.0,115970.0,0.03896809]
[1758119047858,0.96764124,115980.0,115970.0,0.03896809]
[1758119048059,0.93904491,115980.0,115970.0,0.03896809]
[1758119048722,0.93904491,115980.0,115970.0,0.21142648]
[1758119048885,0.92293047,115980.0,115970.0,0.21142648]
[1758119049467,0.08536967,115980.0,115970.0,0.23905648]
[1758119049602,0.89395047,115980.0,115970.0,0.23905648]
[1758119049807,0.89387047,115980.0,115970.0,0.23905648]
[1758119049988,0.89387047,115980.0,115970.0,0.23738648]
[1758119050396,0.89387047,115980.0,115970.0,0.03896809]
[1758119050397,0.89913047,115980.0,115970.0,0.03896809]
[1758119050796,0.89913047,115980.0,115970.0,0.21142648]
[1758119051477,0.92309047,115980.0,115970.0,0.03896809]
[1758119052032,0.92309047,115980.0,115970.0,0.21142648]
[1758119052962,0.92309047,115980.0,115970.0,0.23523648]
[1758119053493,0.92309047,115980.0,115970.0,0.03896809]
[1758119053896,0.92309047,115980.0,115970.0,0.21142648]
[1758119054225,0.55927319,115980.0,115970.0,0.21142648]
[1758119054425,0.92309047,115980.0,115970.0,0.21142648]
[1758119054882,0.89913047,115980.0,115970.0,0.23738648]
[1758119055102,0.89913047,115980.0,115970.0,0.23523648]
[1758119055216,0.92309047,115980.0,115970.0,0.06277809]
[1758119055448,0.92309047,115980.0,115970.0,0.03896809]
[1758119056145,0.92309047,115980.0,115970.0,0.21142648]
[1758119056341,0.92309047,115980.0,115970.0,0.03896809]
[1758119059197,0.93919455,115980.0,115970.0,0.03896809]
[1758119060985,0.93919455,115980.0,115970.0,0.21142648]
[1758119061176,0.93919455,115980.0,115970.0,0.03896809]
[1758119062332,0.93919455,115980.0,115970.0,0.03296809]
[1758119063495,0.96510638,115980.0,115970.0,0.03296809]
[1758119063783,1.42002876,115980.0,115970.0,0.03296809]
[1758119067791,1.50286876,115980.0,115970.0,0.03296809]
[1758119069589,0.6841291,115980.0,115970.0,0.20542648]
[1758119069813,0.5775795,115980.0,115970.0,0.23138648]
[1758119070014,1.02182302,115980.0,115970.0,0.23138648]
[1758119070256,1.43119285,115980.0,115970.0,0.23138648]
[1758119070471,1.43321285,115980.0,115970.0,0.23138648]
[1758119071058,1.43119285,115980.0,115970.0,0.23138648]
[1758119071431,1.43127285,115980.0,115970.0,0.23138648]
[1758119071745,0.08294,115980.0,115970.0,0.23305648]
[1758119071991,0.76418983,115980.0,115970.0,0.23305648]
[1758119072178,0.76414983,115980.0,115970.0,0.23305648]
[1758119076494,0.76410983,115980.0,115970.0,0.23305648]
[1758119076633,0.35474,115980.0,115970.0,0.23305648]
[1758119076835,0.76410983,115980.0,115970.0,0.23305648]
[1758119077144,0.35474,115980.0,115970.0,0.23305648]
[1758119077395,0.68126983,115980.0,115970.0,0.23305648]
[1758119078608,0.27186,115980.0,115970.0,0.72392624]
[1758119079222,0.27186,115980.0,115970.0,0.72402624]
[1758119079427,0.27186,115980.0,115970.0,0.31465641]
[1758119079631,0.27186,115980.0,115970.0,0.23315648]
[1758119079809,0.68122983,115980.0,115970.0,0.23315648]
[1758119084923,0.27186,115980.0,115970.0,0.23315648]
[1758119085137,0.68122983,115980.0,115970.0,0.23315648]
[1758119086777,0.68122983,115980.0,115970.0,0.23148648]
[1758119087227,0.68122983,115980.0,115970.0,0.23315648]
[1758119090159,0.27186,115980.0,115970.0,0.23315648]
[1758119090356,0.68122983,115980.0,115970.0,0.23315648]
[1758119090670,0.85367335,115980.0,115970.0,0.23148648]
[1758119090880,0.85367335,115980.0,115970.0,0.23315648]
[1758119091103,0.68122983,115980.0,115970.0,0.23315648]
[1758119091542,0.85367335,115980.0,115970.0,0.23315648]
[1758119092003,1.26819318,115980.0,115970.0,0.03306809]
[1758119092213,1.43411132,115980.0,115970.0,0.03306809]
[1758119092447,1.43411132,115980.0,115970.0,0.03296809]
[1758119092653,1.47609353,115980.0,115970.0,0.03296809]
[1758119093388,1.44801139,115980.0,115970.0,0.03296809]
[1758119095148,1.44799874,115980.0,115970.0,0.03296809]
[1758119095379,1.41940241,115980.0,115970.0,0.03296809]
[1758119097312,1.75080241,115980.0,115970.0,0.03296809]
[1758119099888,1.75080241,115980.0,115970.0,0.03196809]
[1758119100310,2.16017224,115980.0,115970.0,0.03196809]
[1758119101371,2.19032414,115980.0,115970.0,0.03196809]
[1758119103260,2.24700261,115980.0,115970.0,0.03196809]
[1758119104484,2.25000261,115980.0,115970.0,0.03196809]
[1758119104941,2.19332414,115980.0,115970.0,1e-08]
[1758119105154,0.17247326,115960.0,115950.0,5e-05]
[1758119105367,1.45578704,115960.0,115950.0,5e-05]
[1758119105574,1.48395704,115960.0,115950.0,5e-05]
[1758119106004,1.50987751,115960.0,115950.0,5e-05]
[1758119106214,1.50997751,115960.0,115950.0,5e-05]
[1758119107266,1.23821751,115960.0,115950.0,5e-05]
[1758119107501,1.50997751,115960.0,115950.0,5e-05]
[1758119107680,1.57544449,115960.0,115950.0,5e-05]
[1758119108813,1.57540045,115960.0,115950.0,5e-05]
[1758119109018,1.60399678,115960.0,115950.0,5e-05]
[1758119109966,1.58478195,115960.0,115950.0,5e-05]
[1758119111592,1.58482195,115960.0,115950.0,5e-05]
[1758119113312,1.57622199,115960.0,115950.0,5e-05]
[1758119113518,1.28146199,115960.0,115950.0,5e-05]
[1758119113691,1.55016199,115960.0,115950.0,5e-05]
[1758119113858,1.57622199,115960.0,115950.0,5e-05]
[1758119114627,0.89505216,115960.0,115950.0,5e-05]
[1758119114835,0.75748233,115960.0,115950.0,0.02277]
[1758119115050,0.39204535,115960.0,115950.0,0.00205]
[1758119115279,1.05720151,115960.0,115950.0,0.19725814]
[1758119115491,1.05720151,115960.0,115950.0,0.19892814]
[1758119116118,0.78540151,115960.0,115950.0,0.19892814]
[1758119116420,1.03128104,115960.0,115950.0,0.19892814]
[1758119117621,1.03128104,115960.0,115950.0,0.19725814]
[1758119118032,1.03128104,115960.0,115950.0,0.02477]
[1758119118429,1.03649104,115960.0,115950.0,0.02477]
[1758119118836,1.0624058,115960.0,115950.0,0.00205]
[1758119119632,1.0593058,115960.0,115950.0,0.00205]
[1758119119843,1.0593058,115960.0,115950.0,0.02477]
[1758119120040,1.0593058,115960.0,115950.0,0.00205]
[1758119120251,1.0624058,115960.0,115950.0,5e-05]
[1758119120766,1.0624058,115960.0,115950.0,0.00205]
[1758119120980,1.0624058,115960.0,115950.0,5e-05]
[1758119121475,1.07845039,115960.0,115950.0,0.02277]
[1758119121871,1.04943563,115960.0,115950.0,0.02477]
[1758119122073,1.07324039,115960.0,115950.0,0.19725814]
[1758119122292,0.17763795,115960.0,115950.0,0.19892814]
[1758119122499,0.76411661,115960.0,115950.0,0.19892814]
[1758119122956,0.76411661,115960.0,115950.0,0.19902814]
[1758119123530,0.76411661,115960.0,115950.0,0.20002814]
[1758119124155,0.93658987,115960.0,115950.0,0.20002814]
[1758119124572,0.93658987,115960.0,115950.0,0.19835814]
[1758119124920,0.93658987,115960.0,115950.0,0.02587]
[1758119125061,1.02396954,115960.0,115950.0,0.00305]
[1758119125300,1.04311564,115960.0,115950.0,0.00105]
[1758119125731,1.04311564,115960.0,115950.0,0.02377]
[1758119125904,0.99767808,115960.0,115950.0,0.02377]
[1758119126616,0.99767949,115960.0,115950.0,0.02377]
[1758119126823,0.99767949,115960.0,115950.0,0.02277]
[1758119127032,0.99246949,115960.0,115950.0,0.02477]
[1758119127241,0.99767949,115960.0,115950.0,5e-05]
[1758119127886,1.02063949,115960.0,115950.0,5e-05]
[1758119128685,1.02063949,115960.0,115950.0,0.02277]
[1758119129005,0.99767949,115960.0,115950.0,0.02277]
[1758119129622,0.99767949,115960.0,115950.0,0.02477]
[1758119129999,0.99246949,115960.0,115950.0,0.02644]
[1758119130483,0.99246949,115960.0,115950.0,0.02477]
[1758119130625,0.62853722,115960.0,115950.0,0.02477]
[1758119130836,0.63374722,115960.0,115950.0,0.02277]
[1758119131025,0.63374722,115960.0,115950.0,5e-05]
[1758119131681,0.63064722,115960.0,115950.0,0.02477]
[1758119131860,0.62853722,115960.0,115950.0,0.19725814]
[1758119132037,0.62853722,115960.0,115950.0,0.19892814]
[1758119132240,0.62853722,115960.0,115950.0,0.02477]
[1758119132587,0.62853722,115960.0,115950.0,0.19725814]
[1758119133412,0.62853722,115960.0,115950.0,0.19892814]
[1758119133833,0.62853722,115960.0,115950.0,0.19725814]
[1758119134281,0.61248971,115960.0,115950.0,0.02477]
[1758119134502,0.62854864,115960.0,115950.0,0.02477]
[1758119134702,0.62854864,115960.0,115950.0,0.19725814]
[1758119134897,0.61248971,115960.0,115950.0,0.19725814]
[1758119135117,0.61248971,115960.0,115950.0,0.02477]
[1758119135343,0.61453971,115960.0,115950.0,0.0249]
[1758119135965,0.61748971,115960.0,115950.0,0.02277]
[1758119136096,0.61748971,115960.0,115950.0,5e-05]
[1758119136313,1.41449211,115960.0,115950.0,5e-05]
[1758119136592,0.71254474,115960.0,115950.0,5e-05]
[1758119136795,1.44040928,115960.0,115950.0,5e-05]
[1758119137167,1.41181295,115960.0,115950.0,5e-05]
[1758119141824,1.38733295,115960.0,115950.0,5e-05]
[1758119142432,1.41181295,115960.0,115950.0,5e-05]
[1758119142684,1.41177295,115960.0,115950.0,5e-05]
[1758119145154,0.38475841,115960.0,115950.0,0.00218]
[1758119145413,1.38729295,115960.0,115950.0,0.02272]
[1758119145625,1.41177295,115960.0,115950.0,0.02272]
[1758119145821,1.46845142,115960.0,115950.0,5e-05]
[1758119147394,1.47705138,115960.0,115950.0,5e-05]
[1758119147787,1.47912114,115960.0,115950.0,5e-05]
[1758119150322,1.47913049,115960.0,115950.0,5e-05]
[1758119154451,1.47912404,115960.0,115950.0,5e-05]
[1758119156083,0.17253278,115920.0,115910.0,0.18615396]
[1758119156312,1.34026699,115920.0,115910.0,0.18615396]
[1758119156525,1.36974699,115920.0,115910.0,0.18615396]
[1758119156731,1.38580803,115920.0,115910.0,0.18615396]
[1758119157179,1.38595479,115920.0,115910.0,0.18615396]
[1758119157377,1.41188144,115920.0,115910.0,0.18615396]
[1758119158190,1.41188144,115920.0,115910.0,0.18715396]
[1758119158602,1.41188144,115920.0,115910.0,0.18615396]
[1758119158838,1.47699553,115920.0,115910.0,0.18715396]
[1758119160779,1.53574376,115920.0,115910.0,0.18715396]
[1758119161651,1.53574376,115920.0,115910.0,0.18615396]
[1758119161841,1.89967603,115920.0,115910.0,1e-08]
[1758119162312,1.98759817,115920.0,115910.0,1e-08]
[1758119162519,2.23123603,115920.0,115910.0,1e-08]
[1758119162925,0.87631918,115920.0,115910.0,1e-08]
[1758119163143,1.57558739,115920.0,115910.0,1e-08]
[1758119163378,1.84730739,115920.0,115910.0,1e-08]
[1758119164215,1.57758739,115920.0,115910.0,1e-08]
[1758119164426,1.84930739,115920.0,115910.0,1e-08]
[1758119164647,1.87590372,115920.0,115910.0,1e-08]
[1758119165084,1.60718372,115920.0,115910.0,1e-08]
[1758119165295,1.85030739,115920.0,115910.0,1e-08]
[1758119167011,1.87890372,115920.0,115910.0,1e-08]
[1758119167832,1.87894372,115920.0,115910.0,1e-08]
[1758119171934,1.57858739,115920.0,115910.0,1e-08]
[1758119172229,1.85034739,115920.0,115910.0,1e-08]
[1758119172413,2.29694739,115920.0,115910.0,1e-08]
[1758119173108,2.28088635,115920.0,115910.0,1e-08]
[1758119173338,2.2968924,115920.0,115910.0,1e-08]
[1758119173558,2.28088635,115920.0,115910.0,1e-08]
[1758119174039,2.67341495,115920.0,115910.0,1e-08]
[1758119174256,2.71750484,115920.0,115910.0,1e-08]
[1758119174435,2.70149709,115920.0,115910.0,1e-08]
[1758119176262,2.69289713,115920.0,115910.0,1e-08]
[1758119177318,2.66481499,115920.0,115910.0,1e-08]
[1758119177566,2.28088635,115920.0,115910.0,1e-08]
[1758119178879,2.30948268,115920.0,115910.0,1e-08]
[1758119180663,2.30088272,115920.0,115910.0,1e-08]
[1758119180858,2.66481499,115920.0,115910.0,1e-08]
[1758119181890,2.40910059,115920.0,115910.0,1e-08]
[1758119182095,2.68086059,115920.0,115910.0,1e-08]
[1758119182507,2.66481499,115920.0,115910.0,1e-08]
[1758119182893,2.70149709,115920.0,115910.0,1e-08]
[1758119183112,0.17262903,115860.0,115840.0,0.38585328]
[1758119183320,0.63565227,115850.0,115840.0,0.38590939]
[1758119183531,0.63565227,115850.0,115840.0,0.31769366]
[1758119184379,0.65171299,115850.0,115840.0,0.31816336]
[1758119184585,0.65181299,115850.0,115840.0,0.31816336]
[1758119184818,0.65281299,115850.0,115840.0,0.32316336]
[1758119185279,0.65181299,115850.0,115840.0,0.34077336]
[1758119185703,0.65281299,115850.0,115840.0,0.34577336]
[1758119185852,0.69902447,115850.0,115840.0,0.34577336]
[1758119187530,0.28888072,115850.0,115840.0,0.34577336]
[1758119187716,0.69902447,115850.0,115840.0,0.34577336]
[1758119187920,0.01716072,115850.0,115840.0,0.34577336]
[1758119188125,0.01716072,115850.0,115840.0,0.75591711]
[1758119188344,0.69902447,115850.0,115840.0,0.34577336]
[1758119192069,0.28888072,115850.0,115840.0,0.34577336]
[1758119192504,0.28878072,115850.0,115840.0,0.75591711]
[1758119193631,0.28878072,115850.0,115840.0,0.34577336]
[1758119193856,0.69892447,115850.0,115840.0,0.34577336]
[1758119194059,0.28878072,115850.0,115840.0,0.34577336]
[1758119194280,0.8715615,115850.0,115840.0,0.34577336]
[1758119194488,0.69892447,115850.0,115840.0,0.32316336]
[1758119194693,0.95683117,115850.0,115840.0,0.17511143]
[1758119195137,0.95683117,115850.0,115840.0,0.34776336]
[1758119195557,0.95583117,115850.0,115840.0,0.17011143]
[1758119195968,0.95583117,115850.0,115840.0,0.17411143]
[1758119195969,0.95683117,115850.0,115840.0,0.17411143]
[1758119196188,0.95593117,115850.0,115840.0,0.17011143]
[1758119196602,0.98287149,115850.0,115840.0,0.17411143]
[1758119196817,0.71115149,115850.0,115840.0,0.34176336]
[1758119197021,0.98287149,115850.0,115840.0,0.34176336]
[1758119197240,0.10243039,115850.0,115840.0,0.34176336]
[1758119197446,0.78429414,115850.0,115840.0,0.34176336]
[1758119197667,0.42730447,115850.0,115840.0,0.34176336]
[1758119197871,0.28888072,115850.0,115840.0,0.34176336]
[1758119198087,0.01716072,115850.0,115840.0,0.75190711]
[1758119198294,0.28888072,115850.0,115840.0,0.75190711]
[1758119198726,0.28888072,115850.0,115840.0,0.83122592]
[1758119200342,0.0011,115850.0,115840.0,0.94664749]
[1758119200790,0.0011,115850.0,115840.0,0.42108217]
[1758119201003,0.0011,115850.0,115840.0,0.75190711]
[1758119202261,0.27282,115850.0,115840.0,0.75190711]
[1758119206131,0.001,115850.0,115840.0,0.75190711]
[1758119206334,0.27272,115850.0,115840.0,0.75190711]
[1758119206765,0.27272,115850.0,115840.0,0.83717678]
[1758119206963,0.001,115850.0,115840.0,0.83717678]
[1758119207321,0.001,115850.0,115840.0,1.10889678]
[1758119208163,0.001,115850.0,115840.0,0.69875303]
[1758119208402,0.001,115850.0,115840.0,1.10889678]
[1758119208754,0.001,115850.0,115840.0,1.22431835]
[1758119209770,0.001,115850.0,115840.0,1.28778009]
[1758119210495,0.0001,115860.0,115850.0,0.20278893]
[1758119210706,0.0001,115860.0,115850.0,1.21821577]
[1758119210955,0.0001,115860.0,115850.0,0.80807202]
[1758119211502,0.0001,115860.0,115850.0,1.21831577]
[1758119211709,0.0001,115860.0,115850.0,0.80817202]
[1758119212109,0.0001,115860.0,115850.0,1.21831577]
[1758119212910,0.0001,115870.0,115860.0,0.20277403]
[1758119213142,0.0001,115870.0,115860.0,1.48988087]
[1758119213787,1e-08,115870.0,115860.0,1.48998087]
[1758119214009,1e-08,115870.0,115860.0,1.49198087]
[1758119214527,1e-08,115870.0,115860.0,1.48998087]
[1758119214963,1e-08,115870.0,115860.0,1.88998087]
[1758119215416,1e-08,115870.0,115860.0,1.48998087]
[1758119215852,1e-08,115870.0,115860.0,1.42525049]
[1758119216054,1e-08,115870.0,115860.0,1.42725049]
[1758119216493,1e-08,115870.0,115860.0,1.42525049]
[1758119216696,0.00100001,115870.0,115860.0,1.43125049]
[1758119218229,1e-08,115870.0,115860.0,1.43125049]
[1758119218811,1e-08,115880.0,115870.0,0.55831625]
[1758119218990,0.06821573,115910.0,115890.0,0.20271609]
[1758119219193,0.06821573,115910.0,115900.0,0.91518124]
[1758119219783,0.06821573,115910.0,115900.0,0.93898124]
[1758119220305,0.06821573,115910.0,115900.0,0.93906189]
[1758119220526,0.06821573,115910.0,115900.0,0.1974432]
[1758119221186,0.24076339,115910.0,115900.0,0.1974432]
[1758119221436,0.79968997,115920.0,115900.0,0.1974432]
[1758119221650,0.88495964,115920.0,115910.0,0.0238]
[1758119222097,0.88495964,115920.0,115900.0,0.1726432]
[1758119222314,0.52810478,115910.0,115900.0,0.02388065]
[1758119222537,0.61337445,115910.0,115900.0,8.065e-05]
[1758119223024,0.61536445,115910.0,115900.0,8.065e-05]
[1758119223555,0.61337445,115910.0,115900.0,8.065e-05]
[1758119224078,0.61549445,115910.0,115900.0,0.00308065]
[1758119224342,0.61549445,115910.0,115900.0,8.065e-05]
[1758119224524,0.61549445,115910.0,115900.0,0.00018065]
[1758119224747,0.61549445,115910.0,115900.0,0.00118065]
[1758119224977,0.61866445,115910.0,115900.0,0.00118065]
[1758119225579,0.64154445,115910.0,115900.0,0.00118065]
[1758119227207,0.65756047,115910.0,115900.0,0.00018065]
[1758119230500,0.74044047,115910.0,115900.0,0.00018065]
[1758119231739,0.74904043,115910.0,115900.0,0.00018065]
[1758119232613,0.72616043,115910.0,115900.0,0.00018065]
[1758119232832,0.36531331,115910.0,115900.0,0.02283065]
[1758119233041,0.99243043,115910.0,115900.0,0.02283065]
[1758119233179,0.99455043,115910.0,115900.0,0.00018065]
[1758119233883,1.02060043,115910.0,115900.0,0.00018065]
[1758119234102,0.99772043,115910.0,115900.0,0.00018065]
[1758119234300,0.99243043,115910.0,115900.0,0.02283065]
[1758119234727,0.99455043,115910.0,115900.0,0.00018065]
[1758119235141,0.99772043,115910.0,115900.0,0.00018065]
[1758119236839,0.99772043,115910.0,115900.0,8.065e-05]
[1758119237044,0.99776002,115910.0,115900.0,8.065e-05]
[1758119238168,1.04753388,115910.0,115900.0,8.065e-05]
[1758119238662,1.403091,115910.0,115900.0,8.065e-05]
[1758119238874,1.42937239,115910.0,115900.0,8.065e-05]
[1758119239308,0.82500527,115910.0,115900.0,8.065e-05]
[1758119239535,1.04339002,115910.0,115900.0,8.065e-05]
[1758119240266,1.10968159,115910.0,115900.0,8.065e-05]
[1758119244867,0.48256447,115910.0,115900.0,8.065e-05]
[1758119245049,0.99247002,115910.0,115900.0,8.065e-05]
[1758119245226,0.99459002,115910.0,115900.0,8.065e-05]
[1758119245813,0.6369129,115910.0,115900.0,0.02273065]
[1758119246031,0.3674729,115910.0,115900.0,8.065e-05]
[1758119246272,0.6390329,115910.0,115900.0,8.065e-05]
[1758119246561,0.3674729,115910.0,115900.0,8.065e-05]
[1758119246731,0.6390329,115910.0,115900.0,8.065e-05]
[1758119246876,0.3674729,115910.0,115900.0,8.065e-05]
[1758119247082,0.6390329,115910.0,115900.0,8.065e-05]
[1758119247292,1.1372849,115910.0,115900.0,8.065e-05]
[1758119248117,1.1351649,115910.0,115900.0,8.065e-05]
[1758119248326,1.1351649,115910.0,115900.0,0.02273065]
[1758119248539,0.62831294,115910.0,115900.0,8.065e-05]
[1758119248790,0.62827294,115910.0,115900.0,0.1726432]
[1758119248993,0.62827294,115910.0,115900.0,0.02273065]
[1758119249426,1.13181494,115910.0,115900.0,8.065e-05]
[1758119250348,0.85500494,115910.0,115900.0,8.065e-05]
[1758119250520,0.09893561,115910.0,115900.0,0.21254945]
[1758119250727,0.28757561,115910.0,115900.0,0.1952932]
[1758119250950,0.1811328,115920.0,115910.0,0.17254766]
[1758119251151,0.53792247,115920.0,115910.0,0.19519766]
[1758119251792,0.00859996,115920.0,115910.0,0.19519766]
[1758119251953,0.28011996,115920.0,115910.0,0.19519766]
[1758119252621,0.45265274,115920.0,115910.0,0.19519766]
[1758119252845,0.45265274,115920.0,115910.0,0.02265]
[1758119253236,0.17254766,115910.0,115900.0,8.065e-05]
[1758119253427,0.77214823,115910.0,115900.0,8.065e-05]
[1758119253603,0.77743823,115910.0,115900.0,8.065e-05]
[1758119253848,0.77426823,115910.0,115900.0,8.065e-05]
[1758119254371,0.80073823,115910.0,115900.0,8.065e-05]
[1758119256003,0.80073823,115910.0,115900.0,0.00108065]
[1758119256335,0.80073823,115910.0,115900.0,8.065e-05]
[1758119257710,0.88361823,115910.0,115900.0,8.065e-05]
[1758119258159,0.88361823,115910.0,115900.0,0.00018065]
[1758119260416,0.88361823,115910.0,115900.0,8.065e-05]
[1758119260794,0.88361042,115910.0,115900.0,8.065e-05]
[1758119263238,0.94550823,115910.0,115900.0,8.065e-05]
[1758119263447,0.94550835,115910.0,115900.0,8.065e-05]
[1758119263658,0.91922696,115910.0,115900.0,8.065e-05]
[1758119263905,0.94515832,115910.0,115900.0,8.065e-05]
[1758119264299,0.91814186,115910.0,115900.0,8.065e-05]
[1758119264661,0.94515832,115910.0,115900.0,8.065e-05]
[1758119265270,0.97531022,115910.0,115900.0,8.065e-05]
[1758119265695,0.94829376,115910.0,115900.0,8.065e-05]
[1758119267379,1.27997376,115910.0,115900.0,8.065e-05]
[1758119268321,1.30699022,115910.0,115900.0,8.065e-05]
[1758119268777,1.5428538,115910.0,115900.0,8.065e-05]